[Event "44th Chess Olympiad Open 2022"]
[Site "Chennai"]
[Date "2022.08.05"]
[Round "7.18"]
[White "Schitco, Ivan"]
[Black "Jobava, Baadur"]
[Result "1/2-1/2"]
[ECO "A20"]
[WhiteElo "2490"]
[BlackElo "2585"]
[Annotator "RC"]
[PlyCount "87"]
[EventDate "2022.07.29"]
[EventType "team-tourn"]
[EventCountry "IND"]
[SourceTitle "playchess.com"]
[Source "ChessBase"]
[SourceQuality "1"]
[WhiteTeam "Moldova"]
[BlackTeam "Georgia"]
[WhiteTeamCountry "MDA"]
[BlackTeamCountry "GEO"]
[TimeControl "40/5400+30:1800+30"]

1. c4 {[%emt 0:00:04]} e5 {[%emt 0:01:17]} 2. Nf3 {[%emt 0:00:43]} e4 {[%emt 0:02:53]} 3. Nd4 {[%emt 0:00:07]} Nc6 {[%emt 0:00:35]} 4. e3 {[%emt 0:00:09]} Nxd4 {[%emt 0:00:45]} 5. exd4 {[%emt 0:00:05]} Qf6 {[%emt 0:03:36]} 6. Nc3 {[%emt 0:06:20]} Qxd4 {[%emt 0:04:06]} 7. Be2 {[%emt 0:04:28]} Nf6 {[%emt 0:02:30]} 8. O-O {[%emt 0:02:28]} c6 {[%emt 0:07:31]} 9. d3 {[%emt 0:02:40]} Bd6 {[%emt 0:11:27]} 10. Be3 {[%emt 0:07:09]} Qe5 {[%emt 0:00:43]} 11. g3 {[%emt 0:00:12]} Qe7 {[%emt 0:01:25]} 12. dxe4 {[%emt 0:04:28]} Be5 {[%emt 0:00:29]} 13. Bd4 {[%emt 0:02:04]} d6 {[%emt 0:02:26]} 14. f4 {[%emt 0:01:33]} Bxd4+ {[%emt 0:00:10]} 15. Qxd4 {[%emt 0:00:04]} Bh3 {[%emt 0:04:59]} 16. Rfe1 {[%emt 0:04:53]} O-O {[%emt 0:02:42]} 17. Rad1 {[%emt 0:04:05]} Rfd8 {[%emt 0:05:11]} 18. Bf3 {[%emt 0:03:07]} Bg4 {[%emt 0:01:57]} 19. Bxg4 {[%emt 0:01:54]} Nxg4 {[%emt 0:00:08]} 20. Kg2 {[%emt 0:01:05]} h6 {[%emt 0:00:34]} 21. Re2 {[%emt 0:07:13]} Nf6 {[%emt 0:02:52]} 22. h3 {[%emt 0:06:10]} a6 {[%emt 0:05:02]} 23. a4 {[%emt 0:05:26]} a5 {[%emt 0:01:04]} 24. Rd3 {[%emt 0:08:19]} Qe6 {[%emt 0:05:05]} 25. c5 {[%emt 0:06:44]} dxc5 {[%emt 0:05:21]} 26. Qxd8+ {[%emt 0:00:24]} Rxd8 {[%emt 0:00:04]} 27. Rxd8+ {[%emt 0:00:03]} Kh7 {[%emt 0:00:05]} 28. e5 {[%emt 0:03:02]} Nd7 {[%emt 0:00:42]} 29. f5 {[%emt 0:02:47]} Qe7 {[%emt 0:01:10]} 30. Rxd7 {[%emt 0:06:51]} Qxd7 {[%emt 0:00:05]} 31. e6 {[%emt 0:00:02]} Qe7 {[%emt 0:00:52]} 32. Ne4 {[%emt 0:01:40]} Kg8 {[%emt 0:00:30]} 33. Nd6 {[%emt 0:02:57]} Kf8 {[%emt 0:00:04]} 34. f6 {[%emt 0:02:56]} gxf6 {[%emt 0:03:30]} 35. Nf5 {[%emt 0:00:14]} Qxe6 {[%emt 0:00:04]} 36. Rxe6 {[%emt 0:00:03]} fxe6 {[%emt 0:00:04]} 37. Nd6 {[%emt 0:00:13]} b5 {[%emt 0:00:29]} 38. Nb7 {[%emt 0:03:29]} c4 {[%emt 0:04:55]} 39. Nxa5 {[%emt 0:00:55]} c3 {[%emt 0:00:04]} 40. bxc3 {[%emt 0:00:05]} bxa4 {[%emt 0:00:03]} 41. Nc4 {[%emt 0:06:16]} h5 {[%emt 0:07:25]} 42. Kf3 {[%emt 0:01:25]} Kg7 {[%emt 0:01:16]} 43. Ke4 {[%emt 0:05:54]} f5+ {[%emt 0:04:14]} 44. Kf4 {[%emt 0:18:34]} 1/2-1/2

[Event "44th Chess Olympiad Open 2022"]
[Site "Chennai"]
[Date "2022.08.05"]
[Round "7.18"]
[White "Baltag, Iulian"]
[Black "Pantsulaia, Levan"]
[Result "1/2-1/2"]
[ECO "E90"]
[WhiteElo "2405"]
[BlackElo "2581"]
[Annotator "RC"]
[PlyCount "124"]
[EventDate "2022.07.29"]
[EventType "team-tourn"]
[EventCountry "IND"]
[SourceTitle "playchess.com"]
[Source "ChessBase"]
[SourceQuality "1"]
[WhiteTeam "Moldova"]
[BlackTeam "Georgia"]
[WhiteTeamCountry "MDA"]
[BlackTeamCountry "GEO"]
[TimeControl "40/5400+30:1800+30"]

1. d4 {[%emt 0:00:03]} Nf6 {[%emt 0:00:22]} 2. c4 {[%emt 0:00:19]} c5 {[%emt 0:00:22]} 3. d5 {[%emt 0:00:37]} g6 {[%emt 0:01:34]} 4. Nc3 {[%emt 0:00:11]} Bg7 {[%emt 0:00:05]} 5. e4 {[%emt 0:00:10]} d6 {[%emt 0:00:05]} 6. h3 {[%emt 0:00:18]} O-O {[%emt 0:00:07]} 7. Nf3 {[%emt 0:00:11]} e6 {[%emt 0:02:55]} 8. Be3 {[%emt 0:00:25]} Na6 {[%emt 0:04:41]} 9. Bd3 {[%emt 0:00:22]} e5 {[%emt 0:04:35]} 10. Nd2 {[%emt 0:00:22]} Kh8 {[%emt 0:08:33]} 11. g4 {[%emt 0:00:27]} Ng8 {[%emt 0:00:06]} 12. h4 {[%emt 0:01:54]} Nb4 {[%emt 0:12:08]} 13. Bb1 {[%emt 0:00:34]} Nh6 {[%emt 0:03:09]} 14. a3 {[%emt 0:00:22]} Na6 {[%emt 0:05:24]} 15. f3 {[%emt 0:02:01]} f5 {[%emt 0:00:32]} 16. g5 {[%emt 0:01:20]} Nf7 {[%emt 0:03:49]} 17. Bd3 {[%emt 0:01:54]} f4 {[%emt 0:06:42]} 18. Bf2 {[%emt 0:01:19]} Rg8 {[%emt 0:04:25]} 19. Ke2 {[%emt 0:00:28]} Bf8 {[%emt 0:00:26]} 20. Qg1 {[%emt 0:00:57]} Be7 {[%emt 0:00:59]} 21. Qh2 {[%emt 0:00:19]} Bd7 {[%emt 0:01:34]} 22. Rag1 {[%emt 0:00:57]} Nc7 {[%emt 0:02:17]} 23. b4 {[%emt 0:00:18]} b6 {[%emt 0:00:43]} 24. Rb1 {[%emt 0:01:00]} Ne8 {[%emt 0:00:26]} 25. Rb3 {[%emt 0:05:07]} Ng7 {[%emt 0:03:07]} 26. bxc5 {[%emt 0:00:15]} dxc5 {[%emt 0:09:32]} 27. a4 {[%emt 0:02:02]} a5 {[%emt 0:09:54]} 28. Rhb1 {[%emt 0:02:05]} Ra6 {[%emt 0:00:05]} 29. Nb5 {[%emt 0:01:25]} Nh5 {[%emt 0:01:03]} 30. Nf1 {[%emt 0:01:13]} Bd6 {[%emt 0:01:26]} 31. Be1 {[%emt 0:01:08]} Bb8 {[%emt 0:00:09]} 32. Kd1 {[%emt 0:01:01]} h6 {[%emt 0:01:58]} 33. gxh6 {[%emt 0:00:51]} Nxh6 {[%emt 0:03:34]} 34. Qb2 {[%emt 0:03:14]} Qf6 {[%emt 0:00:07]} 35. Nc3 {[%emt 0:04:46]} Bc7 {[%emt 0:00:11]} 36. Qh2 {[%emt 0:01:01]} Nf7 {[%emt 0:00:31]} 37. R3b2 {[%emt 0:02:09]} Rg7 {[%emt 0:02:24]} 38. Rg2 {[%emt 0:01:00]} Ra8 {[%emt 0:00:12]} 39. Nb5 {[%emt 0:03:19]} Bd8 {[%emt 0:00:25]} 40. Nc3 {[%emt 0:03:06]} Bc7 {[%emt 0:00:20]} 41. Nb5 {[%emt 0:30:33]} Bd8 {[%emt 0:34:15]} 42. Nc3 {[%emt 0:08:23]} Be7 {[%emt 0:00:08]} 43. Rgb2 {[%emt 0:03:25]} Ra6 {[%emt 0:00:26]} 44. Rg2 {[%emt 0:00:21]} Bd8 {[%emt 0:00:00]} 45. Kc1 {[%emt 0:00:00]} Rh7 {[%emt 0:00:00]} 46. Qg1 {[%emt 0:00:00]} Rh6 {[%emt 0:00:00]} 47. Nh2 {[%emt 0:00:00]} Ng3 {[%emt 0:00:00]} 48. Nf1 {[%emt 0:00:00]} Nh5 {[%emt 0:00:00]} 49. Nh2 {[%emt 0:00:00]} Ng3 {[%emt 0:00:00]} 50. Nf1 {[%emt 0:00:00]} Bh3 {[%emt 0:00:00]} 51. Rh2 {[%emt 0:00:00]} Bxf1 {[%emt 0:00:00]} 52. Bxf1 {[%emt 0:00:00]} Rxh4 {[%emt 0:00:00]} 53. Ne2 {[%emt 0:00:00]} Rxh2 {[%emt 0:00:00]} 54. Qxh2+ {[%emt 0:00:00]} Qh4 {[%emt 0:00:00]} 55. Bxg3 {[%emt 0:00:00]} fxg3 {[%emt 0:00:00]} 56. Qxg3 {[%emt 0:00:00]} Qxg3 {[%emt 0:01:58]} 57. Nxg3 {[%emt 0:00:00]} Kg7 {[%emt 0:00:05]} 58. Kd2 {[%emt 0:00:00]} Ra7 {[%emt 0:00:30]} 59. Bh3 {[%emt 0:00:00]} Nd6 {[%emt 0:00:31]} 60. Kd3 {[%emt 0:00:00]} Rf7 {[%emt 0:00:15]} 61. Bg4 {[%emt 0:00:00]} Rf8 {[%emt 0:00:32]} 62. Rh1 {[%emt 0:00:00]} Rh8 {[%emt 0:01:39]} 1/2-1/2

[Event "44th Chess Olympiad Open 2022"]
[Site "Chennai"]
[Date "2022.08.05"]
[Round "7.19"]
[White "Vocaturo, Daniele"]
[Black "Ferreira, Jorge Viterbo"]
[Result "1/2-1/2"]
[ECO "C42"]
[WhiteElo "2616"]
[BlackElo "2499"]
[Annotator "TA"]
[PlyCount "60"]
[EventDate "2022.07.29"]
[EventType "team-tourn"]
[EventCountry "IND"]
[SourceTitle "playchess.com"]
[Source "ChessBase"]
[SourceQuality "1"]
[WhiteTeam "Italy"]
[BlackTeam "Portugal"]
[WhiteTeamCountry "ITA"]
[BlackTeamCountry "POR"]
[TimeControl "40/5400+30:1800+30"]

{[%evp 17,60,29,43,34,38,22,16,25,25,31,31,0,15,0,2,22,21,0,0,0,0,0,0,0,0,0,0,0,0,0,14,0,0,0,0,0,0,0,0,0,0,0,0,-16,0]} 1. e4 {[%emt 0:00:08]} e5 {[%emt 0:00:07]} 2. Nf3 {[%emt 0:00:16]} Nf6 {[%emt 0:00:08]} 3. Nxe5 {[%emt 0:01:17]} d6 {[%emt 0:00:07][%cal Bd7d6,Bd6d5][%mdl 32]} 4. Nf3 {[%emt 0:00:07]} Nxe4 {[%emt 0:00:07]} 5. d4 {[%emt 0:00:30]} d5 {[%emt 0:00:10]} 6. Bd3 {[%emt 0:00:34]} Bf5 {[%emt 0:00:15]} 7. O-O {[%emt 0:01:02]} Be7 {[%emt 0:00:08]} 8. Re1 {[%emt 0:01:12]} O-O {[%emt 0:00:12]} 9. c4 {[%emt 0:00:47] 9.Nbd2 is the fancy move.} Nc6 {[%emt 0:00:59]} 10. cxd5 {[%emt 0:00:45] C42: Petroff Defence: 3 Nxe5 and unusual White 3rd moves.} Qxd5 {[%emt 0:00:12]} 11. Nc3 {[%emt 0:00:10]} Nxc3 {[%emt 0:00:23]} 12. bxc3 {[%emt 0:00:08]} Rae8 {[%emt 0:02:21]} 13. Bf4 {[%emt 0:03:12]} Bd8 {[%emt 0:06:10] [#]} 14. Re3 $146 {[%emt 0:23:20]} ({Predecessor:} 14. Be2 Be4 15. Bg3 Qa5 16. Qc1 Bxf3 17. Bxf3 Bg5 18. Qb2 Nxd4 19. Bxb7 Nf5 20. Bc6 Rxe1+ 21. Rxe1 Nxg3 22. hxg3 Qb6 23. Qxb6 axb6 24. Kf1 Rd8 {½-½ (24) Paravyan,D (2631)-Rakhmanov,A (2653) Moscow 2021}) 14... Rxe3 {[%emt 0:05:02] The position is equal.} 15. fxe3 {[%emt 0:00:16]} Bxd3 {[%emt 0:11:47]} 16. Qxd3 {[%emt 0:00:09]} Re8 {[%emt 0:00:17] Inhibits e4.} 17. Nd2 {[%emt 0:06:11]} Ne5 {[%emt 0:11:11]} 18. Bxe5 {[%emt 0:07:59]} Rxe5 {[%emt 0:03:50]} 19. e4 {[%emt 0:01:13]} Qd7 {[%emt 0:00:12]} 20. Nc4 {[%emt 0:02:08]} Re8 {[%emt 0:01:41]} 21. a4 {[%emt 0:01:21]} b6 {[%emt 0:05:20]} 22. Nd2 {[%emt 0:08:28]} a5 {[%emt 0:01:59]} 23. Nf3 {[%emt 0:06:25]} c6 {[%emt 0:11:38]} 24. Rb1 {[%emt 0:07:37]} Bc7 {[%emt 0:08:34]} 25. g3 {[%emt 0:03:32]} h6 {[%emt 0:05:12]} 26. Rb2 {[%emt 0:05:53]} Rb8 {[%emt 0:01:08]} 27. c4 {[%emt 0:02:40]} c5 {[%emt 0:03:02]} 28. d5 {[%emt 0:02:35][%cal Bd4d5,Bd5d6][%mdl 32]} Qxa4 {[%emt 0:02:22]} 29. e5 {[%emt 0:00:30]} ({Don't blunder} 29. d6 $2 {[#]} Bxd6 $1 {[%mdl 512]} 30. Kg2 Bc7 $19) 29... Re8 {[%emt 0:00:47]} 30. d6 {[%emt 0:04:44]} Qd7 {[%emt 0:00:14] Weighted Error Value: White=0.04 (flawless) /Black=0.01 (flawless)} 1/2-1/2

[Event "44th Chess Olympiad Open 2022"]
[Site "Chennai"]
[Date "2022.08.05"]
[Round "7.19"]
[White "Lodici, Lorenzo"]
[Black "Veiga, Jose Francisco R P N"]
[Result "1-0"]
[ECO "C45"]
[WhiteElo "2553"]
[BlackElo "2378"]
[Annotator "RC"]
[PlyCount "65"]
[EventDate "2022.07.29"]
[EventType "team-tourn"]
[EventCountry "IND"]
[SourceTitle "playchess.com"]
[Source "ChessBase"]
[SourceQuality "1"]
[WhiteTeam "Italy"]
[BlackTeam "Portugal"]
[WhiteTeamCountry "ITA"]
[BlackTeamCountry "POR"]
[TimeControl "40/5400+30:1800+30"]

1. e4 {[%emt 0:00:03]} e5 {[%emt 0:00:21]} 2. Nf3 {[%emt 0:00:05]} Nc6 {[%emt 0:00:18]} 3. d4 {[%emt 0:00:04]} exd4 {[%emt 0:00:42]} 4. Nxd4 {[%emt 0:00:04]} Bc5 {[%emt 0:00:44]} 5. Nb3 {[%emt 0:00:12]} Bb6 {[%emt 0:00:37]} 6. Nc3 {[%emt 0:00:05]} Nf6 {[%emt 0:00:20]} 7. Qe2 {[%emt 0:00:03]} a5 {[%emt 0:01:48]} 8. a4 {[%emt 0:00:06]} O-O {[%emt 0:01:25]} 9. Bg5 {[%emt 0:00:04]} h6 {[%emt 0:06:55]} 10. Bh4 {[%emt 0:00:06]} Nd4 {[%emt 0:01:03]} 11. Qd3 {[%emt 0:00:12]} Nxb3 {[%emt 0:00:37]} 12. cxb3 {[%emt 0:00:02]} c6 {[%emt 0:00:40]} 13. O-O-O {[%emt 0:00:06]} Re8 {[%emt 0:05:22]} 14. f3 {[%emt 0:05:25]} d5 {[%emt 0:13:48]} 15. exd5 {[%emt 0:03:44]} g5 {[%emt 0:01:59]} 16. Bg3 {[%emt 0:00:21]} cxd5 {[%emt 0:00:37]} 17. Kb1 {[%emt 0:11:27]} d4 {[%emt 0:09:53]} 18. Qc2 {[%emt 0:03:12]} Bd7 {[%emt 0:09:40]} 19. Nb5 {[%emt 0:05:25]} Nd5 {[%emt 0:10:17]} 20. Bc4 {[%emt 0:00:54]} Bxb5 {[%emt 0:01:17]} 21. axb5 {[%emt 0:00:19]} Kg7 {[%emt 0:02:44]} 22. Qf5 {[%emt 0:02:15]} Nf6 {[%emt 0:05:58]} 23. Be5 {[%emt 0:04:31]} Rxe5 {[%emt 0:01:01]} 24. Qxe5 {[%emt 0:00:05]} a4 {[%emt 0:03:00]} 25. h4 {[%emt 0:00:54]} axb3 {[%emt 0:01:04]} 26. Bxb3 {[%emt 0:03:16]} Qe8 {[%emt 0:05:39]} 27. Qf5 {[%emt 0:03:08]} Qe3 {[%emt 0:01:58]} 28. Bc2 {[%emt 0:01:42]} Rd8 {[%emt 0:02:27]} 29. Rhe1 {[%emt 0:04:43]} Qf4 {[%emt 0:00:13]} 30. Qxf4 {[%emt 0:00:22]} gxf4 {[%emt 0:00:03]} 31. Re7 {[%emt 0:00:04]} Rd7 {[%emt 0:00:32]} 32. Rxd7 {[%emt 0:00:28]} Nxd7 {[%emt 0:00:02]} 33. Be4 {[%emt 0:00:06]} 1-0

[Event "44th Chess Olympiad Open 2022"]
[Site "Chennai"]
[Date "2022.08.05"]
[Round "7.19"]
[White "Sousa, Andre Ventura"]
[Black "Moroni, Luca Jr"]
[Result "1/2-1/2"]
[ECO "A22"]
[WhiteElo "2420"]
[BlackElo "2584"]
[Annotator "ChessBase"]
[PlyCount "73"]
[EventDate "2022.07.29"]
[EventType "team-tourn"]
[EventCountry "IND"]
[SourceTitle "playchess.com"]
[Source "ChessBase"]
[SourceQuality "1"]
[WhiteTeam "Portugal"]
[BlackTeam "Italy"]
[WhiteTeamCountry "POR"]
[BlackTeamCountry "ITA"]
[TimeControl "40/5400+30:1800+30"]

1. c4 {[%emt 0:00:03]} e5 {[%emt 0:01:03]} 2. g3 {[%emt 0:00:08]} Nf6 {[%emt 0:01:16]} 3. Bg2 {[%emt 0:00:03]} Nc6 {[%emt 0:00:06]} 4. Nc3 {[%emt 0:00:45]} Bb4 {[%emt 0:00:15]} 5. e4 {[%emt 0:02:49]} Bxc3 {[%emt 0:01:31]} 6. bxc3 {[%emt 0:00:49]} d6 {[%emt 0:00:47]} 7. d3 {[%emt 0:00:22]} O-O {[%emt 0:02:30]} 8. Ne2 {[%emt 0:00:51]} Nd7 {[%emt 0:05:10]} 9. O-O {[%emt 0:01:54]} Nc5 {[%emt 0:07:10]} 10. f4 {[%emt 0:18:12]} exf4 {[%emt 0:19:00]} 11. Nxf4 {[%emt 0:10:29]} Ne7 {[%emt 0:05:09]} 12. Be3 {[%emt 0:05:18]} Ng6 {[%emt 0:03:00]} 13. d4 {[%emt 0:08:29]} Nd7 {[%emt 0:01:16]} 14. a4 {[%emt 0:05:39]} a5 {[%emt 0:01:46]} 15. Qb3 {[%emt 0:01:55]} Rb8 {[%emt 0:03:16]} 16. Nxg6 {[%emt 0:08:45]} hxg6 {[%emt 0:00:12]} 17. c5 {[%emt 0:00:09]} dxc5 {[%emt 0:04:44]} 18. e5 {[%emt 0:00:09]} Qe7 {[%emt 0:03:23]} 19. Rae1 {[%emt 0:11:06]} Nb6 {[%emt 0:04:56]} 20. d5 {[%emt 0:00:48]} c4 {[%emt 0:07:26]} 21. Qa2 {[%emt 0:02:23]} Bf5 {[%emt 0:03:50]} 22. d6 {[%emt 0:02:56]} Qd7 {[%emt 0:03:59]} 23. Bxb6 {[%emt 0:03:22]} cxb6 {[%emt 0:00:02]} 24. Qxc4 {[%emt 0:00:05]} Rbc8 {[%emt 0:02:03]} 25. Qd4 {[%emt 0:02:12]} Be6 {[%emt 0:01:03]} 26. Bd5 {[%emt 0:02:36]} Bxd5 {[%emt 0:02:18]} 27. Qxd5 {[%emt 0:00:03]} Rxc3 {[%emt 0:02:25]} 28. Rc1 {[%emt 0:06:34]} Rc6 {[%emt 0:01:27]} 29. Rc4 {[%emt 0:01:26]} Qe6 {[%emt 0:09:04]} 30. Qxe6 {[%emt 0:00:08]} fxe6 {[%emt 0:00:02]} 31. Rfc1 {[%emt 0:00:38]} Rfc8 {[%emt 0:00:33]} 32. d7 {[%emt 0:00:35]} Rd8 {[%emt 0:00:07]} 33. Rxc6 {[%emt 0:00:05]} bxc6 {[%emt 0:00:04]} 34. Rxc6 {[%emt 0:00:03]} Kf7 {[%emt 0:02:00]} 35. Rxb6 {[%emt 0:00:21]} Rxd7 {[%emt 0:00:02]} 36. Rb5 {[%emt 0:01:35]} Rd5 {[%emt 0:00:41]} 37. Kf2 {[%emt 0:00:50]} 1/2-1/2

[Event "44th Chess Olympiad Open 2022"]
[Site "Chennai"]
[Date "2022.08.05"]
[Round "7.19"]
[White "Santos, Jose Guilherme B Lim"]
[Black "Brunello, Sabino"]
[Result "0-1"]
[ECO "D79"]
[WhiteElo "2361"]
[BlackElo "2520"]
[Annotator "RC"]
[PlyCount "80"]
[EventDate "2022.07.29"]
[EventType "team-tourn"]
[EventCountry "IND"]
[SourceTitle "playchess.com"]
[Source "ChessBase"]
[SourceQuality "1"]
[WhiteTeam "Portugal"]
[BlackTeam "Italy"]
[WhiteTeamCountry "POR"]
[BlackTeamCountry "ITA"]
[TimeControl "40/5400+30:1800+30"]

1. d4 {[%emt 0:00:07]} Nf6 {[%emt 0:00:12]} 2. c4 {[%emt 0:00:07]} g6 {[%emt 0:00:03]} 3. g3 {[%emt 0:01:26]} c6 {[%emt 0:04:16]} 4. Nf3 {[%emt 0:00:59]} Bg7 {[%emt 0:00:09]} 5. Bg2 {[%emt 0:00:05]} d5 {[%emt 0:00:13]} 6. O-O {[%emt 0:01:21]} O-O {[%emt 0:05:23]} 7. cxd5 {[%emt 0:02:14]} cxd5 {[%emt 0:00:09]} 8. Ne5 {[%emt 0:00:16]} Ng4 {[%emt 0:05:46]} 9. Nf3 {[%emt 0:20:32]} Nc6 {[%emt 0:16:02]} 10. Nc3 {[%emt 0:01:13]} e6 {[%emt 0:01:34]} 11. Bf4 {[%emt 0:09:28]} Nh6 {[%emt 0:03:21]} 12. Rc1 {[%emt 0:06:40]} Nf5 {[%emt 0:01:46]} 13. e3 {[%emt 0:02:22]} h6 {[%emt 0:07:13]} 14. g4 {[%emt 0:02:38]} g5 {[%emt 0:07:35]} 15. Bxg5 {[%emt 0:16:55]} hxg5 {[%emt 0:00:22]} 16. gxf5 {[%emt 0:00:06]} exf5 {[%emt 0:00:56]} 17. Ne5 {[%emt 0:01:35]} Nxe5 {[%emt 0:13:31]} 18. dxe5 {[%emt 0:00:10]} Bxe5 {[%emt 0:00:05]} 19. Nxd5 {[%emt 0:00:06]} Bxb2 {[%emt 0:17:06]} 20. Rb1 {[%emt 0:05:01]} Bf6 {[%emt 0:01:15]} 21. Qf3 {[%emt 0:02:41]} Be5 {[%emt 0:01:04]} 22. Qe2 {[%emt 0:05:17]} g4 {[%emt 0:02:57]} 23. f4 {[%emt 0:04:49]} Bg7 {[%emt 0:00:18]} 24. Rfd1 {[%emt 0:00:15]} Rb8 {[%emt 0:00:49]} 25. h3 {[%emt 0:01:34]} Qh4 {[%emt 0:03:41]} 26. hxg4 {[%emt 0:05:10]} fxg4 {[%emt 0:00:05]} 27. e4 {[%emt 0:00:16]} b6 {[%emt 0:04:37]} 28. Rbc1 {[%emt 0:01:33]} Be6 {[%emt 0:00:42]} 29. Ne3 {[%emt 0:00:31]} Bh6 {[%emt 0:00:41]} 30. f5 {[%emt 0:01:11]} Bxa2 {[%emt 0:01:25]} 31. Rc3 {[%emt 0:01:13]} Rbc8 {[%emt 0:01:23]} 32. Rdc1 {[%emt 0:03:19]} Bxe3+ {[%emt 0:00:50]} 33. Qxe3 {[%emt 0:00:07]} Rxc3 {[%emt 0:00:04]} 34. Rxc3 {[%emt 0:00:12]} b5 {[%emt 0:00:14]} 35. Rc6 {[%emt 0:00:39]} Rd8 {[%emt 0:01:33]} 36. Rh6 {[%emt 0:01:34]} Rd1+ {[%emt 0:00:07]} 37. Bf1 {[%emt 0:00:04]} Qd8 {[%emt 0:00:12]} 38. Qe2 {[%emt 0:03:43]} Qd4+ {[%emt 0:00:30]} 39. Kh1 {[%emt 0:00:01]} Bc4 {[%emt 0:01:08]} 40. Qxg4+ {[%emt 0:00:03]} Kf8 {[%emt 0:00:40]} 0-1

[Event "44th Chess Olympiad Open 2022"]
[Site "Chennai"]
[Date "2022.08.05"]
[Round "7.20"]
[White "Bjerre, Jonas Buhl"]
[Black "Keinanen, Toivo"]
[Result "1/2-1/2"]
[ECO "D37"]
[WhiteElo "2608"]
[BlackElo "2477"]
[Annotator "ChessBase"]
[PlyCount "70"]
[EventDate "2022.07.29"]
[EventType "team-tourn"]
[EventCountry "IND"]
[SourceTitle "playchess.com"]
[Source "ChessBase"]
[SourceQuality "1"]
[WhiteTeam "Denmark"]
[BlackTeam "Finland"]
[WhiteTeamCountry "DEN"]
[BlackTeamCountry "FIN"]
[TimeControl "40/5400+30:1800+30"]

1. d4 {[%emt 0:00:04]} d5 {[%emt 0:00:43]} 2. c4 {[%emt 0:00:09]} e6 {[%emt 0:00:01]} 3. Nf3 {[%emt 0:00:09]} Nf6 {[%emt 0:00:01]} 4. Nc3 {[%emt 0:00:32]} Be7 {[%emt 0:07:31]} 5. Bf4 {[%emt 0:00:43]} O-O {[%emt 0:02:24]} 6. e3 {[%emt 0:00:08]} c5 {[%emt 0:04:02]} 7. dxc5 {[%emt 0:00:16]} Bxc5 {[%emt 0:00:02]} 8. a3 {[%emt 0:00:12]} a6 {[%emt 0:00:22]} 9. Qc2 {[%emt 0:05:40]} dxc4 {[%emt 0:02:28]} 10. Bxc4 {[%emt 0:07:19]} b5 {[%emt 0:00:33]} 11. Bd3 {[%emt 0:10:23]} Bb7 {[%emt 0:11:15]} 12. Rd1 {[%emt 0:02:52]} Qc8 {[%emt 0:06:17]} 13. Ne4 {[%emt 0:13:45]} Nbd7 {[%emt 0:11:35]} 14. Rc1 {[%emt 0:06:36]} Nxe4 {[%emt 0:19:02]} 15. Bxe4 {[%emt 0:00:11]} Bxe4 {[%emt 0:11:38]} 16. Qxe4 {[%emt 0:00:24]} Qd8 {[%emt 0:00:32]} 17. O-O {[%emt 0:05:33]} Nf6 {[%emt 0:03:28]} 18. Qc6 {[%emt 0:04:40]} Be7 {[%emt 0:00:02]} 19. Rfd1 {[%emt 0:01:56]} Qc8 {[%emt 0:01:13]} 20. Ne5 {[%emt 0:06:01]} Nd5 {[%emt 0:01:21]} 21. Bg3 {[%emt 0:01:18]} Qxc6 {[%emt 0:01:20]} 22. Rxc6 {[%emt 0:05:26]} Bf6 {[%emt 0:02:25]} 23. e4 {[%emt 0:03:52]} Ne7 {[%emt 0:00:09]} 24. Rcd6 {[%emt 0:03:47]} Nc8 {[%emt 0:01:46]} 25. R6d3 {[%emt 0:04:34]} Nb6 {[%emt 0:00:40]} 26. b3 {[%emt 0:01:05]} Be7 {[%emt 0:03:29]} 27. a4 {[%emt 0:05:26]} bxa4 {[%emt 0:00:52]} 28. Nc6 {[%emt 0:00:05]} Bf6 {[%emt 0:01:24]} 29. e5 {[%emt 0:05:00]} Bg5 {[%emt 0:00:12]} 30. f4 {[%emt 0:00:14]} Bh6 {[%emt 0:00:14]} 31. Ne7+ {[%emt 0:00:42]} Kh8 {[%emt 0:00:01]} 32. Rd6 {[%emt 0:00:37]} Rab8 {[%emt 0:02:20]} 33. Nc6 {[%emt 0:01:38]} Ra8 {[%emt 0:03:12]} 34. Ne7 Rab8 {[%emt 0:00:30]} 35. Nc6 Ra8 {[%emt 0:00:30]} 1/2-1/2